[Event "CCT Chesscom Classic-D2 2024"]
[Site "Online"]
[Date "2024.05.11"]
[Round "2"]
[White "Martinez Alcantara, Jose Eduardo"]
[Black "Vachier-Lagrave, Maxime"]
[Result "1/2-1/2"]
[ECO "B52"]
[WhiteElo "2612"]
[BlackElo "2732"]
[Annotator "RC"]
[PlyCount "215"]
[EventDate "2024.05.08"]
[EventType "k.o."]
[EventCountry "NET"]
[SourceTitle "playchess.com"]
[Source "ChessBase"]
[SourceQuality "1"]
[TimeControl "600+2"]

1. e4 {[%emt 0:00:02]} c5 {[%emt 0:00:02]} 2. Nf3 {[%emt 0:00:01]} d6 {[%emt 0:00:01]} 3. Bb5+ {[%emt 0:00:02]} Bd7 {[%emt 0:00:01]} 4. c4 {[%emt 0:00:01]} Nc6 {[%emt 0:00:02]} 5. Nc3 {[%emt 0:00:01]} e5 {[%emt 0:00:02]} 6. d3 {[%emt 0:00:03]} Nge7 {[%emt 0:00:01]} 7. h4 {[%emt 0:00:01]} h5 {[%emt 0:00:02]} 8. Bg5 {[%emt 0:00:00]} f6 {[%emt 0:00:00]} 9. Be3 {[%emt 0:00:02]} g6 {[%emt 0:00:02]} 10. a3 {[%emt 0:00:00]} Bg7 {[%emt 0:00:24]} 11. Rb1 {[%emt 0:00:12]} O-O {[%emt 0:00:09]} 12. b4 {[%emt 0:00:07]} b6 {[%emt 0:00:12]} 13. Nd5 {[%emt 0:00:13]} Bg4 {[%emt 0:00:34]} 14. Qa4 {[%emt 0:00:42]} Nd4 {[%emt 0:00:21]} 15. Nxd4 {[%emt 0:00:11]} cxd4 {[%emt 0:00:14]} 16. Bd2 {[%emt 0:00:01]} Nxd5 {[%emt 0:00:45]} 17. cxd5 {[%emt 0:00:04]} f5 {[%emt 0:00:01]} 18. f3 {[%emt 0:01:00]} fxe4 {[%emt 0:00:02]} 19. dxe4 {[%emt 0:00:00]} Rxf3 {[%emt 0:00:33]} 20. gxf3 {[%emt 0:00:12]} Bxf3 {[%emt 0:00:00]} 21. O-O {[%emt 0:05:38]} Qxh4 {[%emt 0:00:17]} 22. Rxf3 {[%emt 0:00:06]} Qg4+ {[%emt 0:00:01]} 23. Kf2 {[%emt 0:00:02]} Qh4+ {[%emt 0:00:01]} 24. Kg2 {[%emt 0:00:18]} Qg4+ {[%emt 0:00:03]} 25. Rg3 {[%emt 0:00:26]} Qxe4+ {[%emt 0:00:01]} 26. Kh2 {[%emt 0:00:00]} Qxb1 {[%emt 0:00:10]} 27. Bd3 {[%emt 0:00:03]} Qa2 {[%emt 0:00:16]} 28. Rg2 {[%emt 0:00:21]} Qxd5 {[%emt 0:00:14]} 29. Qc2 {[%emt 0:00:03]} Qb7 {[%emt 0:01:00]} 30. Rxg6 {[%emt 0:00:20]} Rf8 {[%emt 0:00:12]} 31. Bh6 {[%emt 0:00:08]} Rf7 {[%emt 0:00:01]} 32. Bxg7 {[%emt 0:00:23]} Rxg7 {[%emt 0:00:02]} 33. Be4 {[%emt 0:00:04]} d5 {[%emt 0:00:43]} 34. Qb3 {[%emt 0:00:04]} Qd7 {[%emt 0:00:01]} 35. Qxd5+ {[%emt 0:00:13]} Qxd5 {[%emt 0:00:03]} 36. Bxd5+ {[%emt 0:00:00]} Kf8 {[%emt 0:00:06]} 37. Re6 {[%emt 0:00:06]} Rg5 {[%emt 0:00:32]} 38. Bc4 {[%emt 0:00:01]} h4 {[%emt 0:00:09]} 39. a4 {[%emt 0:00:06]} d3 {[%emt 0:00:25]} 40. Bxd3 {[%emt 0:00:02]} Rg4 {[%emt 0:00:01]} 41. Bb5 {[%emt 0:00:02]} Rxb4 {[%emt 0:00:02]} 42. Rxe5 {[%emt 0:00:01]} a6 {[%emt 0:00:05]} 43. Bc6 {[%emt 0:00:02]} b5 {[%emt 0:00:05]} 44. axb5 {[%emt 0:00:03]} axb5 {[%emt 0:00:01]} 45. Bxb5 {[%emt 0:00:00]} Kf7 {[%emt 0:00:01]} 46. Bd3 {[%emt 0:00:03]} Kf6 {[%emt 0:00:01]} 47. Rf5+ {[%emt 0:00:02]} Ke6 {[%emt 0:00:01]} 48. Rf3 {[%emt 0:00:01]} Ke5 {[%emt 0:00:01]} 49. Bg6 {[%emt 0:00:03]} Rf4 {[%emt 0:00:01]} 50. Ra3 {[%emt 0:00:01]} Kf6 {[%emt 0:00:01]} 51. Bh5 {[%emt 0:00:01]} Kg5 {[%emt 0:00:01]} 52. Be8 {[%emt 0:00:03]} Rf8 {[%emt 0:00:04]} 53. Bd7 {[%emt 0:00:01]} Rf7 {[%emt 0:00:02]} 54. Ra5+ {[%emt 0:00:02]} Kf4 {[%emt 0:00:03]} 55. Be6 {[%emt 0:00:02]} Rf6 {[%emt 0:00:02]} 56. Bh3 {[%emt 0:00:01]} Rf8 {[%emt 0:00:04]} 57. Rh5 {[%emt 0:00:01]} Ke3 {[%emt 0:00:02]} 58. Rxh4 {[%emt 0:00:01]} Rf4 {[%emt 0:00:02]} 59. Rh8 {[%emt 0:00:01]} Re4 {[%emt 0:00:03]} 60. Kg3 {[%emt 0:00:01]} Re5 {[%emt 0:00:01]} 61. Bg4 {[%emt 0:00:02]} Re4 {[%emt 0:00:02]} 62. Rh1 {[%emt 0:00:02]} Re5 {[%emt 0:00:01]} 63. Ra1 {[%emt 0:00:03]} Re4 {[%emt 0:00:03]} 64. Bf5 {[%emt 0:00:00]} Re5 {[%emt 0:00:01]} 65. Ra3+ {[%emt 0:00:01]} Kd4 {[%emt 0:00:01]} 66. Kf4 {[%emt 0:00:00]} Re7 {[%emt 0:00:09]} 67. Ra1 {[%emt 0:00:02]} Kd5 {[%emt 0:00:03]} 68. Rd1+ {[%emt 0:00:01]} Kc5 {[%emt 0:00:01]} 69. Be4 {[%emt 0:00:01]} Re8 {[%emt 0:00:03]} 70. Rc1+ {[%emt 0:00:03]} Kd4 {[%emt 0:00:01]} 71. Rd1+ {[%emt 0:00:01]} Kc5 {[%emt 0:00:01]} 72. Ke3 {[%emt 0:00:01]} Re5 {[%emt 0:00:03]} 73. Rc1+ {[%emt 0:00:01]} Kd6 {[%emt 0:00:01]} 74. Kd4 {[%emt 0:00:00]} Ra5 {[%emt 0:00:02]} 75. Rc6+ {[%emt 0:00:01]} Kd7 {[%emt 0:00:04]} 76. Rh6 {[%emt 0:00:00]} Ra1 {[%emt 0:00:06]} 77. Ke5 {[%emt 0:00:01]} Re1 {[%emt 0:00:02]} 78. Rh7+ {[%emt 0:00:00]} Ke8 {[%emt 0:00:01]} 79. Ra7 {[%emt 0:00:00]} Re2 {[%emt 0:00:01]} 80. Ra1 {[%emt 0:00:01]} Ke7 {[%emt 0:00:02]} 81. Rh1 {[%emt 0:00:02]} Ke8 {[%emt 0:00:04]} 82. Kd5 {[%emt 0:00:05]} Ke7 {[%emt 0:00:02]} 83. Rh6 {[%emt 0:00:03]} Re1 {[%emt 0:00:03]} 84. Re6+ {[%emt 0:00:02]} Kf8 {[%emt 0:00:05]} 85. Ke5 {[%emt 0:00:03]} Kf7 {[%emt 0:00:06]} 86. Kd6 {[%emt 0:00:02]} Rg1 {[%emt 0:00:12]} 87. Bc2 {[%emt 0:00:10]} Rg3 {[%emt 0:00:04]} 88. Re2 {[%emt 0:00:03]} Kf6 {[%emt 0:00:10]} 89. Rf2+ {[%emt 0:00:01]} Kg5 {[%emt 0:00:01]} 90. Ke5 {[%emt 0:00:00]} Rg4 {[%emt 0:00:04]} 91. Bf5 {[%emt 0:00:02]} Rg3 {[%emt 0:00:02]} 92. Rf1 {[%emt 0:00:02]} Re3+ {[%emt 0:00:02]} 93. Be4 {[%emt 0:00:01]} Rg3 {[%emt 0:00:01]} 94. Rf8 {[%emt 0:00:00]} Rg4 {[%emt 0:00:05]} 95. Bf3 {[%emt 0:00:11]} Rg3 {[%emt 0:00:03]} 96. Rf7 {[%emt 0:00:05]} Kg6 {[%emt 0:00:07]} 97. Rf4 {[%emt 0:00:02]} Kg5 {[%emt 0:00:05]} 98. Rf8 {[%emt 0:00:01]} Kh4 {[%emt 0:00:07]} 99. Kf4 {[%emt 0:00:01]} Rg4+ {[%emt 0:00:01]} 100. Ke3 {[%emt 0:00:01]} Rg7 {[%emt 0:00:05]} 101. Rf5 {[%emt 0:00:04]} Kg3 {[%emt 0:00:02]} 102. Be4 {[%emt 0:00:02]} Rg4 {[%emt 0:00:02]} 103. Rf1 {[%emt 0:00:02]} Kh4 {[%emt 0:00:03]} 104. Rf8 {[%emt 0:00:06]} Kg3 {[%emt 0:00:02]} 105. Rh8 {[%emt 0:00:01]} Rg5 {[%emt 0:00:02]} 106. Rh1 {[%emt 0:00:01]} Rg4 {[%emt 0:00:01]} 107. Bf3 {[%emt 0:00:01]} Rg5 {[%emt 0:00:01]} 108. Rg1+ {[%emt 0:00:05]} 1/2-1/2